[Event "*** Titled Tuesday Blitz"]
[Site "Chess.com"]
[Date "2020.05.26"]
[Round "7"]
[White "ChessicallyInclined"]
[Black "Vesper2018"]
[Result "1-0"]
[WhiteElo "2525"]
[BlackElo "2315"]
[TimeControl "180+1"]
[EndTime "11:21:51 PDT"]
[Termination "ChessicallyInclined won on time"]

1. d4 {[%clk 0:03:00.9]} 1... Nf6 {[%clk 0:03:00.3]} 2. c4 {[%clk 0:02:56.2]}
2... g6 {[%clk 0:03:00.6]} 3. Nc3 {[%clk 0:02:55.4]} 3... Bg7 {[%clk 0:03:01]}
4. e4 {[%clk 0:02:55.7]} 4... d6 {[%clk 0:03:01.4]} 5. f3 {[%clk 0:02:55]} 5...
O-O {[%clk 0:03:01.1]} 6. Be3 {[%clk 0:02:55.2]} 6... c5 {[%clk 0:03:01.1]} 7.
Nge2 {[%clk 0:02:55.8]} 7... Nc6 {[%clk 0:03:01.3]} 8. d5 {[%clk 0:02:55.6]}
8... Na5 {[%clk 0:03:01.7]} 9. Nc1 {[%clk 0:02:50.7]} 9... e6 {[%clk 0:02:54.8]}
10. Be2 {[%clk 0:02:43]} 10... a6 {[%clk 0:02:53.9]} 11. a4 {[%clk 0:02:35.6]}
11... exd5 {[%clk 0:02:42.2]} 12. cxd5 {[%clk 0:02:30.3]} 12... Bd7 {[%clk
0:02:42.1]} 13. O-O {[%clk 0:02:29.6]} 13... b5 {[%clk 0:02:26.7]} 14. axb5
{[%clk 0:02:22.7]} 14... axb5 {[%clk 0:02:27]} 15. Nxb5 {[%clk 0:02:10]} 15...
Qb6 {[%clk 0:02:25.3]} 16. Qd3 {[%clk 0:01:55.6]} 16... Nh5 {[%clk 0:02:10.6]}
17. Rb1 {[%clk 0:01:44.8]} 17... f5 {[%clk 0:02:02.1]} 18. b4 {[%clk 0:01:30.2]}
18... Nb7 {[%clk 0:01:43.7]} 19. Nb3 {[%clk 0:01:07.2]} 19... Rfc8 {[%clk
0:00:59.9]} 20. Nd2 {[%clk 0:01:00.9]} 20... c4 {[%clk 0:00:40.5]} 21. Bxb6
{[%clk 0:00:51.2]} 21... cxd3 {[%clk 0:00:40.8]} 22. Bxd3 {[%clk 0:00:51.2]}
22... Nf4 {[%clk 0:00:41]} 23. Nc7 {[%clk 0:00:31]} 23... Rxc7 {[%clk 0:00:26]}
24. Bxc7 {[%clk 0:00:31.9]} 24... Nxd3 {[%clk 0:00:26.4]} 25. Nb3 {[%clk
0:00:24.9]} 25... Bb5 {[%clk 0:00:22.9]} 26. Rfd1 {[%clk 0:00:22.7]} 26... fxe4
{[%clk 0:00:20.8]} 27. fxe4 {[%clk 0:00:22.6]} 27... Ra2 {[%clk 0:00:20.9]} 28.
Bb6 {[%clk 0:00:20.5]} 28... Be5 {[%clk 0:00:19.5]} 29. Rd2 {[%clk 0:00:19.9]}
29... Ra3 {[%clk 0:00:13.3]} 30. Nd4 {[%clk 0:00:17.6]} 30... Bc4 {[%clk
0:00:09.8]} 31. Nc6 {[%clk 0:00:14.7]} 31... Bf4 {[%clk 0:00:09.3]} 32. Re2
{[%clk 0:00:12.4]} 32... Nxb4 {[%clk 0:00:07.4]} 33. Rf2 {[%clk 0:00:11]} 33...
Nd3 {[%clk 0:00:07]} 34. Rf3 {[%clk 0:00:09.9]} 34... Ra2 {[%clk 0:00:04.2]} 35.
Bd4 {[%clk 0:00:09.6]} 35... Nbc5 {[%clk 0:00:03.5]} 36. Rb8+ {[%clk 0:00:09.1]}
36... Kf7 {[%clk 0:00:02.8]} 37. g3 {[%clk 0:00:08.4]} 37... g5 {[%clk
0:00:02.6]} 38. gxf4 {[%clk 0:00:08.5]} 38... gxf4 {[%clk 0:00:03]} 39. e5
{[%clk 0:00:07.2]} 39... dxe5 {[%clk 0:00:02.2]} 40. Nxe5+ {[%clk 0:00:06.9]}
40... Nxe5 {[%clk 0:00:02.3]} 41. Bxe5 {[%clk 0:00:07.5]} 41... Nd3 {[%clk
0:00:01.5]} 42. Bxf4 {[%clk 0:00:07.1]} 42... Ra1+ {[%clk 0:00:01]} 43. Kg2
{[%clk 0:00:06.2]} 43... Ne1+ {[%clk 0:00:01.5]} 44. Kg3 {[%clk 0:00:06.7]}
44... Nxf3 {[%clk 0:00:02.2]} 45. Kxf3 {[%clk 0:00:07.6]} 45... Ra3+ {[%clk
0:00:02.4]} 46. Kg4 {[%clk 0:00:07.6]} 46... Bxd5 {[%clk 0:00:02.3]} 47. h4
{[%clk 0:00:06.5]} 47... Be6+ {[%clk 0:00:01.6]} 48. Kg5 {[%clk 0:00:06.9]}
48... Ra5+ {[%clk 0:00:01.3]} 49. Kh6 {[%clk 0:00:07.1]} 49... Bf5 {[%clk
0:00:01.5]} 50. Rb7+ {[%clk 0:00:06.9]} 50... Ke6 {[%clk 0:00:02.1]} 51. Bg5
{[%clk 0:00:06.7]} 1-0

[Event "*** Titled Tuesday Blitz"]
[Site "Chess.com"]
[Date "2020.05.26"]
[Round "7"]
[White "Tejas_Rama"]
[Black "aa175"]
[Result "1-0"]
[WhiteElo "2397"]
[BlackElo "2531"]
[TimeControl "180+1"]
[EndTime "11:21:51 PDT"]
[Termination "Tejas_Rama won on time"]

1. Nf3 {[%clk 0:02:59.6]} 1... Nf6 {[%clk 0:02:57.3]} 2. c4 {[%clk 0:02:59.2]}
2... g6 {[%clk 0:02:54.6]} 3. Nc3 {[%clk 0:02:58.6]} 3... d5 {[%clk 0:02:53.9]}
4. cxd5 {[%clk 0:02:55.7]} 4... Nxd5 {[%clk 0:02:54.8]} 5. e4 {[%clk 0:02:55.3]}
5... Nxc3 {[%clk 0:02:54]} 6. dxc3 {[%clk 0:02:56.2]} 6... Qxd1+ {[%clk
0:02:53.6]} 7. Kxd1 {[%clk 0:02:57.1]} 7... Bg7 {[%clk 0:02:51.8]} 8. Bc4 {[%clk
0:02:54.9]} 8... Nc6 {[%clk 0:02:49.9]} 9. Bb5 {[%clk 0:02:48.5]} 9... Bg4
{[%clk 0:02:46.5]} 10. Kc2 {[%clk 0:02:42.3]} 10... O-O-O {[%clk 0:02:42.1]} 11.
Nd2 {[%clk 0:02:36.2]} 11... f5 {[%clk 0:02:39.4]} 12. f3 {[%clk 0:02:33.3]}
12... Bh5 {[%clk 0:02:38.9]} 13. Bc4 {[%clk 0:02:24.6]} 13... fxe4 {[%clk
0:02:32.7]} 14. Be6+ {[%clk 0:02:23.4]} 14... Kb8 {[%clk 0:02:31.8]} 15. g4
{[%clk 0:02:19.4]} 15... Rd6 {[%clk 0:02:30.7]} 16. Bc4 {[%clk 0:02:13]} 16...
Ne5 {[%clk 0:02:20.1]} 17. Nxe4 {[%clk 0:01:58.5]} 17... Bxg4 {[%clk 0:02:05.6]}
18. fxg4 {[%clk 0:01:39.5]} 18... Nxc4 {[%clk 0:02:04.3]} 19. Nxd6 {[%clk
0:01:39.3]} 19... exd6 {[%clk 0:02:02.7]} 20. Rf1 {[%clk 0:01:34.5]} 20... a5
{[%clk 0:01:48.4]} 21. Rf7 {[%clk 0:01:29.2]} 21... Be5 {[%clk 0:01:45.9]} 22.
b3 {[%clk 0:01:19.3]} 22... Nb6 {[%clk 0:01:43.4]} 23. Bf4 {[%clk 0:01:15.2]}
23... Bxf4 {[%clk 0:01:38.7]} 24. Rxf4 {[%clk 0:01:16.1]} 24... Nd5 {[%clk
0:01:37.5]} 25. Rf7 {[%clk 0:01:13.5]} 25... Re8 {[%clk 0:01:16.1]} 26. Kd2
{[%clk 0:01:08.3]} 26... h5 {[%clk 0:01:07.7]} 27. gxh5 {[%clk 0:01:04.8]} 27...
gxh5 {[%clk 0:01:08.6]} 28. Rf5 {[%clk 0:01:01.5]} 28... c6 {[%clk 0:01:05.8]}
29. c4 {[%clk 0:00:56.5]} 29... Nc7 {[%clk 0:00:57.6]} 30. Rxh5 {[%clk
0:00:54.4]} 30... Rg8 {[%clk 0:00:57.5]} 31. Re1 {[%clk 0:00:50.7]} 31... a4
{[%clk 0:00:52.7]} 32. Rh6 {[%clk 0:00:41.9]} 32... axb3 {[%clk 0:00:49.9]} 33.
axb3 {[%clk 0:00:42.8]} 33... d5 {[%clk 0:00:48.3]} 34. h4 {[%clk 0:00:37]}
34... d4 {[%clk 0:00:43.8]} 35. h5 {[%clk 0:00:29.9]} 35... Rg3 {[%clk
0:00:38.2]} 36. Kc2 {[%clk 0:00:26.8]} 36... Na6 {[%clk 0:00:35.4]} 37. Rh8+
{[%clk 0:00:25.4]} 37... Ka7 {[%clk 0:00:34.5]} 38. Ra1 {[%clk 0:00:25.1]} 38...
Kb6 {[%clk 0:00:34.2]} 39. h6 {[%clk 0:00:24.8]} 39... Nb4+ {[%clk 0:00:33.3]}
40. Kd2 {[%clk 0:00:24.9]} 40... Rg2+ {[%clk 0:00:32.8]} 41. Kc1 {[%clk
0:00:22.5]} 41... Nd3+ {[%clk 0:00:10.5]} 42. Kd1 {[%clk 0:00:22.7]} 42... Nb2+
{[%clk 0:00:06.8]} 43. Kc1 {[%clk 0:00:20]} 43... Nd3+ {[%clk 0:00:07.2]} 44.
Kd1 {[%clk 0:00:20.5]} 44... Rh2 {[%clk 0:00:02.6]} 45. h7 {[%clk 0:00:19.9]}
45... Nb2+ {[%clk 0:00:02.2]} 46. Kc1 {[%clk 0:00:19.5]} 46... Nd3+ {[%clk
0:00:02.3]} 47. Kd1 {[%clk 0:00:20.1]} 47... Nb2+ {[%clk 0:00:02.1]} 48. Ke1
{[%clk 0:00:20.8]} 48... Rh1+ {[%clk 0:00:01.5]} 49. Kd2 {[%clk 0:00:20.9]}
49... Rxa1 {[%clk 0:00:01.5]} 50. Rd8 {[%clk 0:00:16.7]} 50... Rh1 {[%clk
0:00:01.2]} 51. h8=Q {[%clk 0:00:17.2]} 51... Rxh8 {[%clk 0:00:01]} 52. Rxh8
{[%clk 0:00:18.1]} 52... Kc5 {[%clk 0:00:01.5]} 53. Kc2 {[%clk 0:00:18.2]} 53...
d3+ {[%clk 0:00:01.3]} 54. Kxb2 {[%clk 0:00:18.5]} 54... Kd4 {[%clk 0:00:01.4]}
55. Rh1 {[%clk 0:00:18.9]} 55... b5 {[%clk 0:00:02.1]} 56. cxb5 {[%clk 0:00:19]}
56... cxb5 {[%clk 0:00:03]} 57. Rd1 {[%clk 0:00:18.6]} 57... Ke3 {[%clk
0:00:01.9]} 58. Kc3 {[%clk 0:00:18.5]} 58... d2 {[%clk 0:00:01.6]} 59. Rxd2
{[%clk 0:00:18.7]} 59... b4+ {[%clk 0:00:01.9]} 60. Kc2 {[%clk 0:00:19.2]} 1-0

[Event "*** Titled Tuesday Blitz"]
[Site "Chess.com"]
[Date "2020.05.26"]
[Round "7"]
[White "Oleksandr_Bortnyk"]
[Black "Maybe00"]
[Result "1/2-1/2"]
[WhiteElo "2983"]
[BlackElo "2812"]
[TimeControl "180+1"]
[EndTime "11:21:52 PDT"]
[Termination "Game drawn by agreement"]

1. e4 {[%clk 0:03:00.9]} 1... e5 {[%clk 0:02:59.7]} 2. Bc4 {[%clk 0:03:00.5]}
2... Nc6 {[%clk 0:02:58.8]} 3. d3 {[%clk 0:03:01]} 3... Nf6 {[%clk 0:02:58.3]}
4. Nc3 {[%clk 0:03:00.7]} 4... Na5 {[%clk 0:02:58.6]} 5. Bb3 {[%clk 0:03:00.3]}
5... Nxb3 {[%clk 0:02:58.2]} 6. axb3 {[%clk 0:03:01.2]} 6... d5 {[%clk
0:02:58.6]} 7. Bg5 {[%clk 0:02:49.9]} 7... dxe4 {[%clk 0:02:56.7]} 8. dxe4
{[%clk 0:02:50.8]} 8... Qxd1+ {[%clk 0:02:34.2]} 9. Rxd1 {[%clk 0:02:51.7]} 9...
Bb4 {[%clk 0:02:33]} 10. f3 {[%clk 0:02:45.4]} 10... Bxc3+ {[%clk 0:02:25.7]}
11. bxc3 {[%clk 0:02:45]} 11... Nd7 {[%clk 0:02:22.8]} 12. h4 {[%clk 0:02:33.5]}
12... f6 {[%clk 0:02:22.8]} 13. Be3 {[%clk 0:02:33.5]} 13... h5 {[%clk
0:02:22.8]} 14. Ne2 {[%clk 0:02:31.2]} 14... Nf8 {[%clk 0:02:21]} 15. Ra1 {[%clk
0:02:20.2]} 15... a6 {[%clk 0:02:20.6]} 16. c4 {[%clk 0:02:20.4]} 16... Bd7
{[%clk 0:01:55.8]} 17. Kf2 {[%clk 0:02:13.6]} 17... Ne6 {[%clk 0:01:55.1]} 18.
Nc3 {[%clk 0:02:11.9]} 18... Bc6 {[%clk 0:01:23.4]} 19. Nd5 {[%clk 0:01:57.7]}
19... Kf7 {[%clk 0:01:19.5]} 20. c3 {[%clk 0:01:30.5]} 20... Rad8 {[%clk
0:01:09.4]} 21. g4 {[%clk 0:01:29.8]} 21... hxg4 {[%clk 0:01:09.2]} 22. fxg4
{[%clk 0:01:30.7]} 22... Bd7 {[%clk 0:00:44]} 23. Kg3 {[%clk 0:01:30.6]} 23...
c6 {[%clk 0:00:39]} 24. Nb4 {[%clk 0:01:30.3]} 24... Bc8 {[%clk 0:00:35.3]} 25.
Rhf1 {[%clk 0:01:28.9]} 25... Ke7 {[%clk 0:00:32.5]} 26. h5 {[%clk 0:01:25.7]}
26... Rd7 {[%clk 0:00:28.1]} 27. Ra2 {[%clk 0:01:17.4]} 27... Rdd8 {[%clk
0:00:25]} 28. Bc1 {[%clk 0:00:53.1]} 28... Rdg8 {[%clk 0:00:19.6]} 29. Ba3
{[%clk 0:00:49.8]} 29... Kf7 {[%clk 0:00:20.1]} 30. Nd3 {[%clk 0:00:49.7]} 30...
Nf4 {[%clk 0:00:16.7]} 31. Nxf4 {[%clk 0:00:47.3]} 31... exf4+ {[%clk
0:00:17.6]} 32. Rxf4 {[%clk 0:00:48.2]} 32... Rd8 {[%clk 0:00:18.2]} 33. Rf3
{[%clk 0:00:42.3]} 33... Rhe8 {[%clk 0:00:16.6]} 34. Re2 {[%clk 0:00:40.8]}
34... Re5 {[%clk 0:00:16.6]} 35. Bc1 {[%clk 0:00:40.7]} 35... Rde8 {[%clk
0:00:16]} 36. Rf4 {[%clk 0:00:32.8]} 36... c5 {[%clk 0:00:15.3]} 37. b4 {[%clk
0:00:17.1]} 37... Bd7 {[%clk 0:00:14.1]} 38. Ba3 {[%clk 0:00:13.6]} 38... Bc6
{[%clk 0:00:14]} 39. b5 {[%clk 0:00:07.6]} 39... axb5 {[%clk 0:00:13.2]} 40.
cxb5 {[%clk 0:00:08.5]} 40... Bxe4 {[%clk 0:00:11.7]} 41. h6 {[%clk 0:00:06.9]}
41... gxh6 {[%clk 0:00:11.3]} 42. Ref2 {[%clk 0:00:07.4]} 42... R8e6 {[%clk
0:00:11.1]} 43. c4 {[%clk 0:00:06.3]} 43... Bd3 {[%clk 0:00:11.2]} 44. Bb2
{[%clk 0:00:06]} 44... Re3+ {[%clk 0:00:11.5]} 45. Kh4 {[%clk 0:00:06.5]} 45...
f5 {[%clk 0:00:11.4]} 46. gxf5 {[%clk 0:00:05.4]} 46... R6e4 {[%clk 0:00:11.8]}
47. b6 {[%clk 0:00:04.7]} 47... Rxf4+ {[%clk 0:00:11.7]} 48. Rxf4 {[%clk
0:00:05.6]} 48... Re4 {[%clk 0:00:12.2]} 49. Rxe4 {[%clk 0:00:04.1]} 49... Bxe4
{[%clk 0:00:13.1]} 50. Ba3 {[%clk 0:00:04.3]} 50... Bxf5 {[%clk 0:00:12.8]} 51.
Bxc5 {[%clk 0:00:05]} 51... Bd3 {[%clk 0:00:13.3]} 52. Be3 {[%clk 0:00:05.6]}
52... Bxc4 {[%clk 0:00:13.5]} 53. Bxh6 {[%clk 0:00:05.9]} 53... Bd5 {[%clk
0:00:14.3]} 54. Bf4 {[%clk 0:00:06.2]} 54... Ke6 {[%clk 0:00:14.7]} 55. Bc7
{[%clk 0:00:07.1]} 55... Kd7 {[%clk 0:00:15.5]} 56. Kg5 {[%clk 0:00:08]} 56...
Kc6 {[%clk 0:00:16.3]} 57. Kf6 {[%clk 0:00:08.9]} 57... Bc4 {[%clk 0:00:17]} 58.
Ke7 {[%clk 0:00:09.8]} 58... Ba6 {[%clk 0:00:17.8]} 59. Kd8 {[%clk 0:00:10.7]}
59... Bb5 {[%clk 0:00:18.5]} 60. Kc8 {[%clk 0:00:11.6]} 60... Ba6 {[%clk
0:00:19.4]} 61. Kb8 {[%clk 0:00:12.5]} 61... Bb5 {[%clk 0:00:20.2]} 62. Ka7
{[%clk 0:00:13.3]} 62... Ba6 {[%clk 0:00:21]} 1/2-1/2

[Event "*** Titled Tuesday Blitz"]
[Site "Chess.com"]
[Date "2020.05.26"]
[Round "7"]
[White "nihalsarin"]
[Black "LiamVrolijk"]
[Result "1-0"]
[WhiteElo "3033"]
[BlackElo "2784"]
[TimeControl "180+1"]
[EndTime "11:21:52 PDT"]
[Termination "nihalsarin won by resignation"]

1. Nc3 {[%clk 0:03:00.9]} 1... Nf6 {[%clk 0:02:59.2]} 2. Nf3 {[%clk 0:03:00.3]}
2... d5 {[%clk 0:02:54.2]} 3. d4 {[%clk 0:02:58.8]} 3... c5 {[%clk 0:02:52.4]}
4. dxc5 {[%clk 0:02:28.8]} 4... Nc6 {[%clk 0:02:25]} 5. e3 {[%clk 0:02:28.7]}
5... e6 {[%clk 0:02:22.2]} 6. a3 {[%clk 0:02:26.2]} 6... Bxc5 {[%clk 0:02:20.2]}
7. Bd3 {[%clk 0:02:26.9]} 7... O-O {[%clk 0:02:18.1]} 8. O-O {[%clk 0:02:27.1]}
8... Be7 {[%clk 0:01:36.2]} 9. e4 {[%clk 0:02:25.4]} 9... d4 {[%clk 0:01:35.9]}
10. Ne2 {[%clk 0:02:21.3]} 10... e5 {[%clk 0:01:36.4]} 11. Ng3 {[%clk 0:02:22]}
11... Nd7 {[%clk 0:01:34.7]} 12. b4 {[%clk 0:02:03]} 12... a5 {[%clk 0:01:30.2]}
13. b5 {[%clk 0:02:02]} 13... Ncb8 {[%clk 0:01:30.6]} 14. Nf5 {[%clk 0:01:38.4]}
14... Bf6 {[%clk 0:01:30.4]} 15. a4 {[%clk 0:01:27.2]} 15... Nc5 {[%clk
0:01:28.9]} 16. Ba3 {[%clk 0:01:27.7]} 16... Qb6 {[%clk 0:01:22]} 17. Ng3 {[%clk
0:01:13]} 17... Re8 {[%clk 0:01:12.5]} 18. Bxc5 {[%clk 0:01:08.8]} 18... Qxc5
{[%clk 0:01:12.3]} 19. Nh5 {[%clk 0:01:00.7]} 19... Be7 {[%clk 0:01:10]} 20. Nd2
{[%clk 0:01:00.7]} 20... Be6 {[%clk 0:01:08.1]} 21. f4 {[%clk 0:00:56.4]} 21...
exf4 {[%clk 0:01:05.8]} 22. Nxf4 {[%clk 0:00:57.3]} 22... Bg5 {[%clk 0:00:47.4]}
23. Nxe6 {[%clk 0:00:48.9]} 23... Rxe6 {[%clk 0:00:48.3]} 24. Nb3 {[%clk
0:00:25.1]} 24... Qc7 {[%clk 0:00:43.5]} 25. Kh1 {[%clk 0:00:16.8]} 25... Be3
{[%clk 0:00:42.3]} 26. Qg4 {[%clk 0:00:14.1]} 26... Nd7 {[%clk 0:00:39.1]} 27.
Rf5 {[%clk 0:00:14.3]} 27... Ne5 {[%clk 0:00:37.2]} 28. Qe2 {[%clk 0:00:14.8]}
28... Rae8 {[%clk 0:00:29.5]} 29. Raf1 {[%clk 0:00:14.7]} 29... b6 {[%clk
0:00:26.9]} 30. h3 {[%clk 0:00:13.8]} 30... Qd6 {[%clk 0:00:22.7]} 31. Nd2
{[%clk 0:00:12.2]} 31... Bxd2 {[%clk 0:00:22.4]} 32. Qxd2 {[%clk 0:00:13.1]}
32... R6e7 {[%clk 0:00:19.2]} 33. Qf4 {[%clk 0:00:12.6]} 33... Qe6 {[%clk
0:00:15.9]} 34. Qg3 {[%clk 0:00:11]} 34... Ng6 {[%clk 0:00:13.5]} 35. h4 {[%clk
0:00:10.2]} 35... h6 {[%clk 0:00:14.1]} 36. h5 {[%clk 0:00:10.4]} 36... Ne5
{[%clk 0:00:09.6]} 37. Rf6 {[%clk 0:00:10.9]} 37... Qg4 {[%clk 0:00:06.7]} 38.
Qxg4 {[%clk 0:00:11.3]} 38... Nxg4 {[%clk 0:00:07.6]} 39. Rxb6 {[%clk
0:00:12.1]} 39... Re5 {[%clk 0:00:07.6]} 40. Ra6 {[%clk 0:00:07.9]} 40... Ne3
{[%clk 0:00:05.6]} 41. Rf3 {[%clk 0:00:05.8]} 41... Rxh5+ {[%clk 0:00:06]} 42.
Kg1 {[%clk 0:00:06.3]} 42... Ree5 {[%clk 0:00:03.5]} 43. Rxa5 {[%clk 0:00:05.2]}
43... Reg5 {[%clk 0:00:03.8]} 44. Ra8+ {[%clk 0:00:05.2]} 44... Kh7 {[%clk
0:00:03.9]} 45. e5+ {[%clk 0:00:06.1]} 45... Nf5 {[%clk 0:00:03.4]} 46. Rxf5
{[%clk 0:00:04.4]} 46... Rxf5 {[%clk 0:00:04.3]} 47. g4 {[%clk 0:00:04.7]} 1-0

[Event "*** Titled Tuesday Blitz"]
[Site "Chess.com"]
[Date "2020.05.26"]
[Round "7"]
[White "Aygehovit1992"]
[Black "Beca95"]
[Result "1-0"]
[WhiteElo "2716"]
[BlackElo "2857"]
[TimeControl "180+1"]
[EndTime "11:21:52 PDT"]
[Termination "Aygehovit1992 won on time"]

1. e4 {[%clk 0:03:00.9]} 1... c5 {[%clk 0:03:00.1]} 2. Nf3 {[%clk 0:03:00.6]}
2... d6 {[%clk 0:03:00.7]} 3. d4 {[%clk 0:03:00.8]} 3... cxd4 {[%clk 0:03:01.6]}
4. Nxd4 {[%clk 0:03:01.7]} 4... Nf6 {[%clk 0:03:01.6]} 5. Nc3 {[%clk 0:03:02.3]}
5... a6 {[%clk 0:03:02.3]} 6. h4 {[%clk 0:03:00.2]} 6... e5 {[%clk 0:03:00.6]}
7. Nb3 {[%clk 0:03:00.4]} 7... Be7 {[%clk 0:03:00.2]} 8. Be2 {[%clk 0:03:00.6]}
8... h5 {[%clk 0:02:53.7]} 9. Bg5 {[%clk 0:02:57.1]} 9... Be6 {[%clk 0:02:52.8]}
10. g3 {[%clk 0:02:57.1]} 10... Nbd7 {[%clk 0:02:52.2]} 11. Qd2 {[%clk
0:02:52.8]} 11... Rc8 {[%clk 0:02:52]} 12. O-O-O {[%clk 0:02:49]} 12... b5
{[%clk 0:02:51.7]} 13. f3 {[%clk 0:02:45.2]} 13... b4 {[%clk 0:02:51.2]} 14. Nd5
{[%clk 0:02:44.7]} 14... Bxd5 {[%clk 0:02:50.8]} 15. exd5 {[%clk 0:02:44.8]}
15... a5 {[%clk 0:02:50.4]} 16. Bb5 {[%clk 0:02:42.7]} 16... O-O {[%clk
0:02:50.5]} 17. g4 {[%clk 0:02:37.9]} 17... hxg4 {[%clk 0:02:29.6]} 18. Bxd7
{[%clk 0:02:35.9]} 18... Qxd7 {[%clk 0:02:28.3]} 19. Nxa5 {[%clk 0:02:33.2]}
19... Qa4 {[%clk 0:02:15.6]} 20. Nc6 {[%clk 0:02:30.4]} 20... Rxc6 {[%clk
0:02:10.2]} 21. dxc6 {[%clk 0:02:29.3]} 21... gxf3 {[%clk 0:02:07.5]} 22. Bxf6
{[%clk 0:02:20.4]} 22... Bxf6 {[%clk 0:02:07.2]} 23. Qxd6 {[%clk 0:02:20.7]}
23... Qxa2 {[%clk 0:01:46.6]} 24. c7 {[%clk 0:02:19.9]} 24... Rc8 {[%clk
0:00:39.1]} 25. Qd7 {[%clk 0:01:25.9]} 25... Qa1+ {[%clk 0:00:36.4]} 26. Kd2
{[%clk 0:01:24.4]} 26... Qa6 {[%clk 0:00:36.9]} 27. Ra1 {[%clk 0:00:24.7]} 27...
Qe6 {[%clk 0:00:26.1]} 28. Qxe6 {[%clk 0:00:22.8]} 28... fxe6 {[%clk 0:00:27]}
29. Ra7 {[%clk 0:00:22.5]} 29... e4 {[%clk 0:00:25.8]} 30. Ke3 {[%clk
0:00:15.2]} 30... Be5 {[%clk 0:00:23.4]} 31. Kxe4 {[%clk 0:00:15.3]} 31... Bxc7
{[%clk 0:00:23.5]} 32. Kxf3 {[%clk 0:00:15.4]} 32... Be5 {[%clk 0:00:23.7]} 33.
Re1 {[%clk 0:00:14.1]} 33... Bxb2 {[%clk 0:00:23.6]} 34. Rxe6 {[%clk 0:00:12.3]}
34... Rxc2 {[%clk 0:00:23]} 35. Re8+ {[%clk 0:00:12.4]} 35... Kh7 {[%clk
0:00:23.2]} 36. Raa8 {[%clk 0:00:13]} 36... Rc3+ {[%clk 0:00:20.8]} 37. Kg4
{[%clk 0:00:13.3]} 37... Rc4+ {[%clk 0:00:20.8]} 38. Kg3 {[%clk 0:00:11.7]}
38... Bf6 {[%clk 0:00:17.9]} 39. h5 {[%clk 0:00:10.4]} 39... Kh6 {[%clk
0:00:18.3]} 40. Rh8+ {[%clk 0:00:09.7]} 40... Kg5 {[%clk 0:00:18.6]} 41. Ra5+
{[%clk 0:00:09.4]} 41... Be5+ {[%clk 0:00:13]} 42. Rxe5+ {[%clk 0:00:09.9]}
42... Kf6 {[%clk 0:00:13.8]} 43. Re3 {[%clk 0:00:09.2]} 43... Kg5 {[%clk
0:00:12.2]} 44. Rg8 {[%clk 0:00:05.9]} 44... Rc7 {[%clk 0:00:11.7]} 45. Rge8
{[%clk 0:00:04.6]} 45... Kxh5 {[%clk 0:00:11.4]} 46. R8e5+ {[%clk 0:00:05.3]}
46... Kg6 {[%clk 0:00:11.4]} 47. Rb5 {[%clk 0:00:06.1]} 47... Rc4 {[%clk
0:00:11]} 48. Rb3 {[%clk 0:00:06.2]} 1-0

[Event "*** Titled Tuesday Blitz"]
[Site "Chess.com"]
[Date "2020.05.26"]
[Round "7"]
[White "levallem"]
[Black "gliglu"]
[Result "0-1"]
[WhiteElo "2167"]
[BlackElo "2380"]
[TimeControl "180+1"]
[EndTime "11:21:53 PDT"]
[Termination "gliglu won by checkmate"]

1. d4 {[%clk 0:03:00.9]} 1... g6 {[%clk 0:02:58.9]} 2. c4 {[%clk 0:02:58.4]}
2... Bg7 {[%clk 0:02:58.7]} 3. Nc3 {[%clk 0:02:55]} 3... d6 {[%clk 0:02:58]} 4.
Nf3 {[%clk 0:02:55.5]} 4... Nf6 {[%clk 0:02:57.2]} 5. e4 {[%clk 0:02:55.2]} 5...
O-O {[%clk 0:02:57.2]} 6. Be2 {[%clk 0:02:54.7]} 6... e5 {[%clk 0:02:57.2]} 7.
dxe5 {[%clk 0:02:55.6]} 7... dxe5 {[%clk 0:02:56.7]} 8. Qxd8 {[%clk 0:02:55.6]}
8... Rxd8 {[%clk 0:02:56.7]} 9. Bg5 {[%clk 0:02:56.2]} 9... Re8 {[%clk
0:02:56.4]} 10. Nd5 {[%clk 0:02:51.8]} 10... Nxd5 {[%clk 0:02:55.8]} 11. cxd5
{[%clk 0:02:52.1]} 11... c6 {[%clk 0:02:56]} 12. Bc4 {[%clk 0:02:38.5]} 12... b5
{[%clk 0:02:54.7]} 13. Bb3 {[%clk 0:02:37.7]} 13... a5 {[%clk 0:02:53.1]} 14. a4
{[%clk 0:02:33.6]} 14... Bb7 {[%clk 0:02:45.8]} 15. axb5 {[%clk 0:02:28.2]}
15... cxb5 {[%clk 0:02:43.2]} 16. O-O {[%clk 0:02:27]} 16... Nd7 {[%clk
0:02:42.9]} 17. Rfc1 {[%clk 0:02:20.1]} 17... a4 {[%clk 0:02:39.7]} 18. Bd1
{[%clk 0:02:14.4]} 18... Rac8 {[%clk 0:02:36.8]} 19. Nd2 {[%clk 0:02:00.4]}
19... Nc5 {[%clk 0:02:29.6]} 20. Be2 {[%clk 0:01:54.4]} 20... Ba6 {[%clk
0:02:09.7]} 21. Be3 {[%clk 0:01:48.3]} 21... Bf8 {[%clk 0:02:09.5]} 22. f3
{[%clk 0:01:33.4]} 22... f5 {[%clk 0:02:06.8]} 23. Rc2 {[%clk 0:01:15.4]} 23...
Nb7 {[%clk 0:01:04.7]} 24. Rac1 {[%clk 0:01:10.4]} 24... Nd6 {[%clk 0:01:04.5]}
25. Rxc8 {[%clk 0:01:05.9]} 25... Rxc8 {[%clk 0:01:03.7]} 26. Rxc8 {[%clk
0:01:05.7]} 26... Nxc8 {[%clk 0:01:03.1]} 27. Nb1 {[%clk 0:00:54.6]} 27... Bb4
{[%clk 0:01:01.4]} 28. Bd3 {[%clk 0:00:44.8]} 28... f4 {[%clk 0:00:54.8]} 29.
Bd2 {[%clk 0:00:38.1]} 29... Bxd2 {[%clk 0:00:39.3]} 30. Nxd2 {[%clk 0:00:39]}
30... Nd6 {[%clk 0:00:39.2]} 31. Nb1 {[%clk 0:00:30.1]} 31... Bc8 {[%clk
0:00:38.8]} 32. Nc3 {[%clk 0:00:29.1]} 32... Bd7 {[%clk 0:00:38.8]} 33. Na2
{[%clk 0:00:27.2]} 33... Kf7 {[%clk 0:00:38.8]} 34. Kf2 {[%clk 0:00:24.7]} 34...
Ke7 {[%clk 0:00:38.4]} 35. Ke2 {[%clk 0:00:25]} 35... Nb7 {[%clk 0:00:38.2]} 36.
Kd2 {[%clk 0:00:20.4]} 36... Kd6 {[%clk 0:00:37.9]} 37. Kc3 {[%clk 0:00:19.5]}
37... Kc5 {[%clk 0:00:38]} 38. Nb4 {[%clk 0:00:18.9]} 38... Na5 {[%clk
0:00:31.9]} 39. Na6+ {[%clk 0:00:18.3]} 39... Kb6 {[%clk 0:00:31.8]} 40. Nb4
{[%clk 0:00:17.6]} 40... g5 {[%clk 0:00:29.9]} 41. h3 {[%clk 0:00:16.5]} 41...
Nb7 {[%clk 0:00:28.7]} 42. Nc2 {[%clk 0:00:16.8]} 42... Nc5 {[%clk 0:00:28]} 43.
Be2 {[%clk 0:00:17.3]} 43... Nb3 {[%clk 0:00:25.6]} 44. Nb4 {[%clk 0:00:17.2]}
44... Nd4 {[%clk 0:00:24.2]} 45. Bf1 {[%clk 0:00:16.7]} 45... h5 {[%clk
0:00:23.6]} 46. Nd3 {[%clk 0:00:16.8]} 46... Nb3 {[%clk 0:00:14.2]} 47. Nxe5
{[%clk 0:00:16.5]} 47... Be8 {[%clk 0:00:14.3]} 48. d6 {[%clk 0:00:13.9]} 48...
Nc5 {[%clk 0:00:07.1]} 49. Kd4 {[%clk 0:00:12.6]} 49... b4 {[%clk 0:00:06.4]}
50. Nc4+ {[%clk 0:00:11.8]} 50... Kc6 {[%clk 0:00:05.9]} 51. e5 {[%clk
0:00:12.4]} 51... Ne6+ {[%clk 0:00:05.3]} 52. Ke4 {[%clk 0:00:10.5]} 52... Bg6#
{[%clk 0:00:05.2]} 0-1